bitfinex-derivatives/quotes_SOLF0:USTF0_20240913
["timestamp","ask_amount","ask_price","bid_price","bid_amount"]
[1726234784938,18.5656,132.43,132.41,3.7759]
[1726234785129,3.18,132.43,132.39,11.61]
[1726234785437,3.18,132.43,132.42,3.7756]
[1726234786937,3.18,132.43,132.42,15.3856]
[1726234788935,3.18,132.43,132.42,3.7756]
[1726234789230,3.18,132.43,132.42,15.3856]
[1726234793238,3.18,132.43,132.42,3.7756]
[1726234793438,3.18,132.43,132.41,3.7758]
[1726234793640,14.79,132.43,132.39,11.61]
[1726234793833,3.18,132.43,132.37,1.3779]
[1726234794136,3.18,132.43,132.42,15.3856]
[1726234794338,3.18,132.43,132.42,11.61]
[1726234794640,6.9555,132.43,132.39,11.61]
[1726234794826,14.79,132.43,132.39,11.61]
[1726234795136,14.79,132.43,132.39,15.3865]
[1726234795437,18.5654,132.43,132.39,15.3865]
[1726234796437,6.9554,132.43,132.39,15.3865]
[1726234796738,3.18,132.43,132.39,11.61]
[1726234797041,3.18,132.43,132.4,11.61]
[1726234797434,3.7758,132.42,132.4,11.61]
[1726234798143,3.7755,132.43,132.4,11.61]
[1726234798542,15.3855,132.43,132.39,3.7764]
[1726234798744,3.7757,132.42,132.39,3.7764]
[1726234799345,3.18,132.41,132.39,3.7764]
[1726234799745,3.18,132.41,132.4,15.3862]
[1726234800442,3.18,132.41,132.39,3.7764]
[1726234801141,3.18,132.41,132.38,11.61]
[1726234801542,3.18,132.41,132.37,11.61]
[1726234801941,3.18,132.41,132.39,11.61]
[1726234802141,3.18,132.41,132.39,15.3864]
[1726234802345,3.18,132.41,132.39,11.61]
[1726234802548,14.79,132.41,132.35,1.3851]
[1726234802741,11.61,132.4,132.36,3.7773]
[1726234803045,11.61,132.4,132.35,11.61]
[1726234803547,3.7767,132.39,132.35,11.61]
[1726234804145,3.7767,132.39,132.36,3.7773]
[1726234804649,3.7763,132.4,132.37,3.777]
[1726234804951,15.3863,132.4,132.36,11.61]
[1726234805142,15.3863,132.4,132.36,15.3872]
[1726234805341,15.3863,132.4,132.36,11.61]
[1726234805542,6.9562,132.41,132.37,11.61]
[1726234805848,6.9562,132.41,132.32,1.3641]
[1726234805849,14.79,132.41,132.32,1.3641]
[1726234806052,3.7766,132.39,132.36,11.61]
[1726234807344,3.18,132.41,132.38,11.61]
[1726234807652,14.79,132.41,132.37,11.61]
[1726234807957,3.18,132.41,132.4,11.61]
[1726234808146,7.546,132.52,132.4,11.61]
[1726234808147,15.35027148,132.47,132.4,11.61]
[1726234808447,15.35027148,132.47,132.42,11.61]
[1726234808448,11.61,132.47,132.42,11.61]
[1726234808652,3.76483626,132.46,132.41,11.61]
[1726234808851,11.61,132.46,132.42,11.61]
[1726234809040,3.7749,132.45,132.42,11.61]
[1726234809239,11.61,132.48,132.43,11.61]
[1726234809445,3.7744,132.47,132.43,15.3852]
[1726234809651,11.61,132.48,132.43,15.3852]
[1726234810257,8.00107915,132.49,132.43,3.7752]
[1726234810654,3.7744,132.47,132.43,3.7752]
[1726234811255,8.00107915,132.49,132.43,3.7752]
[1726234811557,8.00107915,132.49,132.42,18.12]
[1726234812757,3.7744,132.47,132.43,3.7753]
[1726234812956,9.00107915,132.49,132.43,3.7753]
[1726234813152,3.7745,132.46,132.43,3.7753]
[1726234813852,9.00107915,132.49,132.42,18.12]
[1726234814552,3.7745,132.47,132.43,3.7753]
[1726234815159,3.7745,132.46,132.43,3.7753]
[1726234815760,3.7748,132.45,132.42,21.8954]
[1726234815960,9.00107915,132.49,132.42,18.12]
[1726234816752,18.12,132.48,132.39,19.491]
[1726234817967,18.12,132.47,132.39,19.491]
[1726234818257,9.00107915,132.49,132.39,19.491]
[1726234818448,18.12,132.47,132.39,19.491]
[1726234818856,3.7754,132.43,132.4,3.776]
[1726234819663,18.12,132.47,132.39,19.491]
[1726234819965,7.64727915,132.49,132.43,18.12]
[1726234820149,3.7745,132.46,132.44,3.7749]
[1726234820344,3.7745,132.46,132.43,18.12]
[1726234820761,3.7751,132.44,132.41,18.12]
[1726234821554,3.7751,132.44,132.41,21.8957]
[1726234821755,3.7751,132.44,132.41,3.7757]
[1726234821957,3.7751,132.44,132.39,19.491]
[1726234821958,18.12,132.47,132.39,19.491]
[1726234822351,18.12,132.47,132.42,3.7754]
[1726234822557,1.0,132.49,132.4,18.12]
[1726234822762,1.0,132.49,132.44,18.12]
[1726234822959,1.0,132.49,132.45,3.7746]
[1726234823163,1.0,132.49,132.44,18.12]
[1726234824162,4.7737,132.49,132.46,3.7744]
[1726234824461,4.7737,132.49,132.44,18.12]
[1726234824462,1.0,132.49,132.44,18.12]
[1726234825050,4.7737,132.49,132.46,3.7743]
[1726234825256,1.0,132.49,132.44,18.12]
[1726234825963,1.0,132.49,132.46,3.7742]
[1726234827058,4.7737,132.49,132.46,3.7742]
[1726234827270,1.0,132.49,132.44,18.12]
[1726234827958,1.0,132.49,132.43,18.12]
[1726234828156,19.12,132.49,132.42,1.3214]
[1726234828567,19.12,132.49,132.42,5.0968]
[1726234828954,19.12,132.49,132.41,19.4419]
[1726234829362,18.12,132.47,132.39,1.371]
[1726234829563,18.12,132.46,132.38,19.4556]
[1726234829769,3.75954239,132.45,132.38,19.4556]
[1726234829972,3.7755,132.43,132.4,3.7762]
[1726234830769,3.7755,132.43,132.39,3.7764]
[1726234831768,3.7751,132.44,132.38,19.4556]
[1726234831972,3.7751,132.44,132.39,18.12]
[1726234832265,3.7749,132.45,132.39,18.12]
[1726234832474,4.183,132.48,132.41,18.12]
[1726234833167,22.303,132.48,132.41,18.12]
[1726234833562,3.775,132.45,132.41,21.8958]
[1726234833763,4.183,132.48,132.41,18.12]
[1726234834361,1.0,132.49,132.39,2.8468]
[1726234834362,1.0,132.49,132.47,18.12]
[1726234834761,1.0,132.49,132.47,21.8941]
[1726234835072,1.0,132.49,132.47,18.12]
[1726234835465,4.7737,132.49,132.47,18.12]
[1726234835663,1.0,132.49,132.47,18.12]
[1726234836860,1.0,132.49,132.47,21.8942]
[1726234837565,1.0,132.49,132.48,3.7739]
[1726234837761,1.0,132.49,132.47,18.12]
[1726234838972,1.0,132.49,132.47,21.8941]
[1726234839558,1.0,132.49,132.47,18.12]
[1726234840368,1.0,132.49,132.47,21.8942]
[1726234840570,1.0,132.49,132.47,18.12]
[1726234841566,1.0,132.49,132.45,21.8948]
[1726234841878,1.0,132.49,132.45,18.12]
[1726234842172,3.7739,132.48,132.45,18.12]
[1726234842767,3.7739,132.48,132.45,21.8947]
[1726234842969,18.12,132.51,132.43,18.12]
[1726234843175,18.12,132.51,132.42,18.12]
[1726234843176,3.7747,132.46,132.42,18.12]
[1726234843475,3.7747,132.46,132.42,21.8954]
[1726234844170,1.0,132.46,132.45,18.12]
[1726234844364,1.4402,132.53,132.45,18.12]
[1726234844559,1.4402,132.53,132.4,18.12]
[1726234844560,3.7733,132.51,132.47,21.8942]
[1726234844770,1.4402,132.53,132.47,18.12]
[1726234845169,3.7735,132.5,132.47,18.12]
[1726234845874,1.4402,132.53,132.47,18.12]
[1726234846074,1.4402,132.53,132.49,18.12]
[1726234846467,1.4402,132.53,132.47,21.8942]
[1726234847071,3.7733,132.51,132.47,21.8942]
[1726234848081,2.8823,132.59,132.5,18.12]
[1726234848378,18.12,132.57,132.39,2.8468]
[1726234848578,18.12,132.57,132.47,21.894]
[1726234848772,1.4531,132.56,132.47,21.894]
[1726234849171,3.7731,132.51,132.47,21.894]
[1726234849586,18.12,132.55,132.47,18.12]
[1726234849972,3.7731,132.51,132.47,18.12]
[1726234850169,3.7731,132.51,132.47,21.894]
[1726234850465,18.12,132.55,132.47,18.12]
[1726234850679,18.12,132.55,132.47,21.8942]
[1726234850972,3.7732,132.51,132.47,21.8942]
[1726234851173,18.12,132.55,132.48,18.12]
[1726234851672,3.7732,132.51,132.48,21.8937]
[1726234851878,3.7732,132.51,132.48,3.7737]
[1726234852279,3.7736,132.5,132.47,3.7741]
[1726234852475,3.76246359,132.52,132.46,18.12]
[1726234852677,3.7732,132.51,132.47,3.774]
[1726234853073,18.12,132.55,132.47,3.774]
[1726234853274,18.12,132.55,132.46,18.12]
[1726234853275,3.7735,132.5,132.46,21.8944]
[1726234853782,3.7735,132.5,132.46,18.12]
[1726234853984,3.7735,132.5,132.46,21.8943]
[1726234854486,3.84327122,132.52,132.46,21.8943]
[1726234854677,19.5147,132.54,132.47,3.7742]
[1726234854877,19.5147,132.54,132.46,18.12]
[1726234855288,19.5147,132.54,132.46,21.8944]
[1726234855483,19.5147,132.54,132.46,18.12]
[1726234855981,19.5147,132.54,132.47,3.774]
[1726234856177,1.4531,132.56,132.46,18.12]
[1726234856386,19.5731,132.56,132.46,18.12]
[1726234856790,3.7733,132.51,132.46,18.12]
[1726234856983,3.7733,132.51,132.48,3.7737]
[1726234857181,3.7733,132.51,132.48,21.8937]
[1726234857582,1.4531,132.56,132.5,18.12]
[1726234858089,3.7728,132.52,132.5,18.12]
[1726234858493,1.4531,132.56,132.5,18.12]
[1726234858683,3.7726,132.53,132.5,21.8932]
[1726234858984,1.4531,132.56,132.5,21.8932]
[1726234859292,3.773,132.52,132.5,18.12]
[1726234859483,3.85205044,132.52,132.39,1.4125]
[1726234859790,3.7745,132.46,132.43,3.7752]
[1726234860084,3.7745,132.46,132.42,19.4897]
[1726234860482,3.7743,132.47,132.42,19.4897]
[1726234860885,18.12,132.51,132.43,3.7752]
[1726234861082,3.80145004,132.5,132.42,19.4897]
[1726234861286,7.5457,132.52,132.42,1.3697]
[1726234861485,18.12,132.47,132.39,19.5325]
[1726234861686,3.7761,132.41,132.39,1.4125]
[1726234861889,18.12,132.45,132.37,20.9311]
[1726234862283,18.12,132.43,132.35,19.4747]
[1726234862482,21.90483498,132.47,132.35,19.4747]
[1726234862483,18.12,132.41,132.35,1.3547]
[1726234862681,3.7773,132.37,132.35,1.3547]
[1726234863082,40.8,132.47,132.31,18.12]
[1726234863083,18.12,132.39,132.31,18.12]
[1726234863284,3.7778,132.35,132.31,21.8987]
[1726234863777,21.89635877,132.39,132.3,18.12]
[1726234864179,18.12,132.38,132.3,18.12]
[1726234864380,3.77635877,132.39,132.28,19.4554]
[1726234864381,18.12,132.36,132.28,19.4554]
[1726234864780,18.12,132.36,132.28,1.3354]
[1726234864993,18.12,132.36,132.28,19.4554]
[1726234865490,4.2663,132.38,132.3,18.12]
[1726234865691,18.12,132.37,132.23,1.3814]
[1726234865879,18.12,132.37,132.28,18.12]
[1726234866590,3.779,132.31,132.28,18.12]
[1726234867195,3.7791,132.3,132.28,18.12]
[1726234867386,18.12,132.36,132.28,18.12]
[1726234868086,3.779,132.31,132.28,18.12]
[1726234868591,3.7786,132.32,132.28,21.8996]
[1726234868893,3.7786,132.32,132.3,18.12]
[1726234869091,18.12,132.37,132.3,18.12]
[1726234870294,3.7783,132.33,132.3,18.12]
[1726234870490,4.2663,132.38,132.3,18.12]
[1726234870701,2.8473,132.38,132.32,18.12]
[1726234871285,3.7782,132.33,132.3,18.12]
[1726234871681,18.12,132.37,132.3,18.12]
[1726234871885,3.7787,132.32,132.3,18.12]
[1726234872288,3.7788,132.31,132.28,21.8996]
[1726234873095,18.12,132.35,132.27,21.8997]
[1726234873498,3.7793,132.3,132.27,21.8997]
[1726234873899,18.12,132.35,132.28,3.7794]
[1726234874098,3.779,132.31,132.28,3.7794]
[1726234875497,3.7791,132.3,132.27,21.8997]
[1726234875716,18.12,132.35,132.27,18.12]
[1726234876505,3.7792,132.3,132.27,21.8999]
[1726234876892,18.12,132.35,132.27,18.12]
[1726234877105,3.7791,132.3,132.27,18.12]
[1726234877495,3.7791,132.3,132.27,21.8998]
[1726234878694,1.3589,132.37,132.25,18.12]
[1726234878695,18.12,132.32,132.25,18.12]
[1726234879003,18.12,132.32,132.24,2.7205]
[1726234879304,18.12,132.32,132.24,6.501]
[1726234879507,3.8679088,132.31,132.24,2.7205]
[1726234880505,3.7799,132.28,132.24,6.5011]
[1726234881205,3.7799,132.28,132.25,3.7805]
[1726234881707,3.7796,132.29,132.26,3.7802]
[1726234881908,18.12,132.34,132.27,18.12]
[1726234882101,7.5549,132.36,132.27,18.12]
[1726234882102,25.6749,132.36,132.27,18.12]
[1726234882301,3.779,132.31,132.27,18.12]
[1726234882505,3.779,132.31,132.28,3.7796]
[1726234882804,3.779,132.31,132.28,21.8996]
[1726234883000,18.12,132.36,132.29,3.7792]
[1726234883510,3.7784,132.33,132.28,18.12]
[1726234884208,3.7784,132.33,132.29,3.7792]
[1726234884407,3.7786,132.32,132.29,3.7792]
[1726234884810,3.7784,132.33,132.3,3.779]
[1726234885010,19.4789,132.37,132.28,18.12]
[1726234885408,3.7786,132.32,132.29,3.7792]
[1726234886408,19.4789,132.37,132.28,18.12]
[1726234887012,18.12,132.36,132.27,18.12]
[1726234887205,1.3589,132.37,132.29,18.12]
[1726234887603,18.12,132.34,132.26,18.12]
[1726234887910,18.12,132.33,132.24,24.6212]
[1726234888307,18.12,132.33,132.24,20.8405]
[1726234888704,3.70149833,132.32,132.26,18.12]
[1726234889007,18.12,132.34,132.26,18.12]
[1726234889199,3.7793,132.3,132.27,3.7798]
[1726234889901,3.7794,132.29,132.26,21.9001]
[1726234890097,3.78545998,132.32,132.26,18.12]
[1726234890311,18.12,132.33,132.26,18.12]
[1726234890507,3.7795,132.29,132.26,21.9002]
[1726234891208,3.7792,132.3,132.26,21.9002]
[1726234892204,3.7794,132.29,132.26,21.9002]
[1726234892906,18.12,132.35,132.27,3.7799]
[1726234892907,3.7791,132.3,132.27,3.7799]
[1726234893306,3.7791,132.3,132.26,18.12]
[1726234893307,3.7795,132.29,132.26,21.9]
[1726234893711,3.7795,132.29,132.26,18.12]
[1726234894016,18.12,132.33,132.26,18.12]
[1726234894218,7.5548,132.36,132.26,18.12]
[1726234894512,3.7793,132.29,132.26,21.9]
[1726234895710,3.7796,132.28,132.26,18.12]
[1726234896510,3.81647628,132.31,132.26,21.9002]
[1726234896714,18.12,132.33,132.26,21.9002]
[1726234897113,3.7796,132.29,132.26,21.9002]
[1726234897420,3.82441939,132.31,132.26,21.9002]
[1726234897619,3.7796,132.29,132.26,21.9002]
[1726234898809,3.7792,132.3,132.27,3.7798]
[1726234899218,3.69770784,132.31,132.27,3.7798]
[1726234899425,3.7795,132.29,132.27,3.7798]
[1726234900217,3.7795,132.29,132.26,21.9]
[1726234900717,3.83047129,132.31,132.26,3.78]
[1726234900918,18.12,132.33,132.26,3.78]
[1726234901119,3.7795,132.29,132.26,3.78]
[1726234902116,3.7795,132.29,132.26,21.9]
[1726234902328,3.7793,132.3,132.27,3.7797]
[1726234902720,3.7793,132.3,132.26,18.12]
[1726234902721,3.77345015,132.31,132.26,18.12]
[1726234902918,3.7796,132.29,132.26,21.9001]
[1726234903415,3.78668634,132.31,132.26,21.9001]
[1726234903620,18.12,132.33,132.26,21.9001]
[1726234904126,3.7795,132.29,132.26,21.9001]
[1726234907232,3.83084953,132.31,132.24,24.6211]
[1726234907436,18.12,132.32,132.24,20.8405]
[1726234907836,21.87520353,132.32,132.25,3.7803]
[1726234908337,3.7798,132.28,132.25,3.7803]
[1726234909232,3.75520353,132.32,132.26,18.12]
[1726234909436,18.12,132.35,132.27,18.12]
[1726234909738,3.7787,132.32,132.29,3.7791]
[1726234909936,19.4789,132.37,132.29,18.12]
[1726234910437,19.4789,132.37,132.3,3.779]
[1726234910935,3.7785,132.33,132.3,3.779]
[1726234911726,3.7785,132.32,132.3,3.779]
[1726234911939,3.7785,132.32,132.29,18.12]
[1726234911940,18.12,132.37,132.31,3.7786]
[1726234912140,18.12,132.37,132.29,18.12]
[1726234912443,3.7784,132.33,132.3,3.779]
[1726234912635,21.89635877,132.39,132.26,18.12]
[1726234912839,3.7778,132.35,132.31,18.12]
[1726234913033,3.7778,132.35,132.31,19.446]
[1726234913344,3.778,132.34,132.31,19.446]
[1726234913535,21.89635877,132.39,132.31,19.446]
[1726234913737,3.77635877,132.39,132.33,21.8982]
[1726234913941,19.5412,132.41,132.33,18.12]
[1726234914453,3.7775,132.36,132.33,21.8982]
[1726234914639,23.25301873,132.41,132.33,18.12]
[1726234915144,3.7772,132.37,132.34,3.7779]
[1726234915946,3.7772,132.37,132.34,21.8979]
[1726234916145,3.7769,132.38,132.35,3.7775]
[1726234917233,3.7771,132.37,132.35,3.7775]
[1726234918354,18.12,132.42,132.36,3.7772]
[1726234918545,18.12,132.44,132.36,21.8972]
[1726234918936,3.7765,132.4,132.36,21.8972]
[1726234919141,18.12,132.44,132.36,18.12]
[1726234919635,3.7768,132.38,132.36,18.12]
[1726234920439,3.7771,132.37,132.34,21.8979]
[1726234922342,3.69925958,132.38,132.33,3.778]
[1726234922542,18.12,132.41,132.32,18.12]
[1726234922943,3.7778,132.35,132.32,21.8983]
[1726234923240,3.70681911,132.37,132.32,18.12]
[1726234923440,3.778,132.34,132.31,6.4704]
[1726234923643,3.778,132.34,132.31,2.6917]
[1726234923846,18.12,132.39,132.32,18.12]
[1726234924243,18.12,132.39,132.32,21.8983]
[1726234924244,3.7778,132.35,132.32,21.8983]
[1726234924443,3.80500529,132.37,132.32,18.12]
[1726234924637,19.4815,132.41,132.32,18.12]
[1726234924856,3.7775,132.36,132.33,3.778]
[1726234925056,3.85263874,132.37,132.33,3.778]
[1726234925246,19.4815,132.41,132.33,3.778]
[1726234926045,3.7775,132.36,132.33,3.778]
[1726234926249,19.4815,132.41,132.33,3.778]
[1726234926250,1.3615,132.41,132.34,3.7779]
[1726234926446,18.12,132.44,132.35,18.12]
[1726234926746,18.12,132.44,132.33,18.12]
[1726234926747,3.7764,132.4,132.37,18.12]
[1726234927856,3.7764,132.4,132.37,21.8971]
[1726234928347,3.7765,132.39,132.37,18.12]
[1726234930156,39.24116452,132.45,132.35,18.12]
[1726234930347,15.96110188,132.44,132.35,18.12]
[1726234930855,3.7766,132.39,132.36,3.7772]
[1726234931058,18.12,132.43,132.33,18.12]
[1726234931258,18.12,132.41,132.33,18.12]
[1726234931455,18.12,132.41,132.32,18.12]
[1726234931966,3.7773,132.37,132.33,18.12]
[1726234932753,3.7769,132.38,132.33,18.12]
[1726234933557,3.7769,132.38,132.34,3.7776]
[1726234934062,3.7771,132.37,132.34,3.7776]
[1726234934261,15.95559708,132.42,132.35,18.12]
[1726234934467,15.95559708,132.42,132.36,18.12]
[1726234934762,3.7764,132.4,132.36,21.8971]
[1726234935254,3.776,132.41,132.38,21.8967]
[1726234937753,3.7755,132.43,132.4,21.8962]
[1726234938057,3.7755,132.43,132.4,18.12]
[1726234938259,3.7755,132.43,132.33,21.95201772]
[1726234938260,3.7747,132.46,132.42,21.8955]
[1726234938455,2.7756,132.49,132.42,21.8955]
[1726234939057,18.73264897,132.49,132.42,21.8955]
[1726234939470,3.7742,132.47,132.42,18.12]
[1726234939664,18.73264897,132.49,132.42,18.12]
[1726234939665,1.3607,132.49,132.42,18.12]
[1726234940058,3.7748,132.45,132.42,18.12]
[1726234940453,3.7748,132.45,132.41,3.7758]
[1726234940672,3.7748,132.45,132.42,18.12]
[1726234941264,3.7751,132.44,132.42,18.12]
[1726234941954,3.7749,132.45,132.42,18.12]
[1726234942266,1.3607,132.49,132.42,18.12]
[1726234942660,3.7752,132.44,132.42,18.12]
[1726234943458,3.7753,132.43,132.42,18.12]
[1726234948566,1.3607,132.49,132.42,18.12]
[1726234949766,3.7753,132.44,132.42,18.12]
[1726234949969,1.3607,132.49,132.42,18.12]
[1726234950267,11.6,132.47,132.33,3.83201772]
[1726234950468,11.6,132.47,132.32,7.5567]
[1726234950469,11.6,132.46,132.41,11.6]
[1726234950772,3.73280943,132.45,132.41,11.6]
[1726234950971,3.7756,132.42,132.41,11.6]
[1726234952163,3.7756,132.42,132.4,21.9061]
[1726234952369,3.7754,132.43,132.4,21.9061]
[1726234952873,3.7751,132.44,132.42,18.13]
[1726234953072,11.38931832,132.52,132.43,18.13]
[1726234953272,11.38931832,132.52,132.43,21.9053]
[1726234953472,3.7747,132.46,132.43,21.9053]
[1726234954075,3.7748,132.45,132.43,21.9053]
[1726234954571,3.7748,132.45,132.43,18.13]
[1726234955774,19.4916,132.51,132.43,18.13]
[1726234956567,19.4916,132.51,132.42,18.13]
[1726234956777,18.13,132.49,132.42,18.13]
[1726234957078,3.7753,132.43,132.42,18.13]
[1726234957576,18.13,132.49,132.41,4.1103]
[1726234957577,3.7756,132.42,132.41,1.4449]
[1726234958074,3.86021084,132.45,132.39,18.13]
[1726234958276,3.776,132.41,132.39,18.13]
[1726234958776,3.776,132.41,132.39,21.9064]
[1726234959678,3.7758,132.42,132.39,21.9064]
[1726234960478,3.7755,132.43,132.4,18.13]
[1726234960976,3.7757,132.42,132.4,21.9061]
[1726234961377,3.7757,132.42,132.39,21.9063]
[1726234961571,3.7761,132.41,132.39,18.13]
[1726234963671,3.7762,132.4,132.39,18.13]
[1726234964682,3.74480798,132.43,132.37,21.9068]
[1726234964982,18.13,132.44,132.37,18.13]
[1726234965185,21.91145511,132.44,132.37,18.13]
[1726234965383,3.78145511,132.44,132.35,19.4608]
[1726234965568,18.13,132.42,132.35,19.4608]
[1726234965879,3.7772,132.37,132.35,19.4608]
[1726234966077,21.82313027,132.42,132.35,1.3308]
[1726234966381,21.82313027,132.42,132.34,2.6788]
[1726234966883,21.82313027,132.42,132.34,6.4565]
[1726234967083,3.7772,132.37,132.34,6.4565]
[1726234967480,3.7774,132.36,132.34,6.4565]
[1726234967784,3.7774,132.36,132.34,2.6788]
[1726234968184,18.13,132.41,132.32,21.9084]
[1726234968382,7.5504,132.44,132.35,18.13]
[1726234968584,18.13,132.45,132.37,18.13]
[1726234968774,3.7764,132.4,132.37,21.9068]
[1726234969571,3.7765,132.39,132.37,18.13]
[1726234970474,3.7765,132.39,132.37,21.907]
[1726234971081,3.7763,132.4,132.37,21.907]
[1726234971285,3.72457851,132.45,132.38,3.7766]
[1726234971480,18.13,132.47,132.38,3.7766]
[1726234971789,3.7761,132.41,132.38,3.7766]
[1726234972181,3.7762,132.4,132.38,3.7766]
[1726234972684,3.7762,132.4,132.37,23.2384]
[1726234972880,3.7765,132.39,132.37,19.4615]
[1726234974275,3.82463639,132.42,132.38,3.7768]
[1726234974276,3.7761,132.41,132.38,3.7768]
[1726234974686,18.13,132.45,132.38,3.7768]
[1726234974883,21.89039489,132.45,132.38,3.7768]
[1726234975783,21.89039489,132.45,132.37,23.2384]
[1726234976776,3.7764,132.4,132.37,23.2384]
[1726234977177,21.89039489,132.45,132.37,23.2384]
[1726234978086,15.94149746,132.44,132.37,23.2384]
[1726234978585,15.94149746,132.44,132.38,3.7768]
[1726234978787,21.89039489,132.45,132.38,3.7768]
[1726234979685,3.7763,132.4,132.38,3.7768]
[1726234980078,3.7763,132.4,132.39,11.61]
[1726234983989,3.7766,132.39,132.38,11.61]
[1726234984391,3.7771,132.37,132.36,2.6575]
[1726234984593,3.7771,132.37,132.36,14.2675]
[1726234984884,3.7771,132.37,132.33,1.3353]
[1726234984885,3.73120141,132.38,132.34,11.61]
[1726234985089,3.7776,132.36,132.34,11.61]
[1726234986082,3.7776,132.36,132.34,15.3878]
[1726234986390,3.7776,132.36,132.35,11.61]
[1726234990592,3.7772,132.37,132.35,15.3876]
[1726234990793,3.7772,132.37,132.35,11.61]
[1726234991086,11.61,132.42,132.36,11.61]
[1726234991488,11.61,132.42,132.36,15.3873]
[1726234992193,11.61,132.42,132.36,11.61]
[1726234992194,3.7769,132.38,132.36,11.61]
[1726234992397,11.61,132.41,132.36,11.61]
[1726234992595,3.777,132.38,132.36,11.61]
[1726234993095,3.777,132.38,132.36,15.3873]
[1726234993297,3.7767,132.39,132.36,15.3873]
[1726234993495,3.7767,132.39,132.38,11.61]
[1726234993998,4.1221,132.44,132.38,11.61]
[1726234993999,13.0296,132.44,132.38,11.61]
[1726234994193,13.0296,132.44,132.4,11.61]
[1726234994388,11.61,132.44,132.4,11.61]
[1726234994588,3.7761,132.41,132.39,11.61]
[1726234995595,3.7761,132.41,132.4,11.61]
[1726234996594,3.7757,132.42,132.4,11.61]
[1726234996792,3.70786092,132.43,132.41,11.61]
[1726234996991,11.61,132.46,132.41,11.61]
[1726234997192,3.7756,132.43,132.41,11.61]
[1726234999098,3.7756,132.42,132.41,11.61]
[1726235000595,3.7756,132.42,132.4,11.61]
[1726235000895,11.61,132.42,132.33,1.3353]
[1726235001193,11.61,132.41,132.36,11.61]
[1726235001598,3.7772,132.37,132.36,11.61]
[1726235002006,3.71533915,132.42,132.36,11.61]
[1726235002300,11.61,132.43,132.39,11.61]
[1726235002500,15.29587032,132.43,132.39,11.61]
[1726235003202,11.61,132.42,132.39,11.61]
[1726235003705,3.7764,132.4,132.38,11.61]
[1726235004702,11.61,132.42,132.38,11.61]
[1726235005800,3.7761,132.41,132.39,11.61]
[1726235006198,3.7761,132.41,132.39,15.3865]
[1726235006505,3.7761,132.41,132.39,11.61]
[1726235007502,3.7762,132.4,132.39,11.61]
[1726235007704,15.29587032,132.43,132.39,11.61]
[1726235008005,3.68587032,132.43,132.4,11.61]
[1726235008204,11.61,132.44,132.4,11.61]
[1726235008607,1.4288,132.47,132.4,11.61]